fUSD/lending_fUSD_20251210
["ID","MTS","AMOUNT","RATE_DAILY","PERIOD"]
[398062445,1765345860594,-500.0,0.00015258,2]
[398062446,1765345860603,-509.89980318,0.00015258,2]
[398062447,1765345860612,-500.0,0.00015258,2]
[398062448,1765345860622,-500.0,0.00015258,2]
[398062449,1765345860631,-500.0,0.00015258,2]
[398062450,1765345860641,-500.0,0.00015258,2]
[398062451,1765345860651,-500.0,0.00015258,2]
[398062452,1765345860660,-500.0,0.00015258,2]
[398062453,1765345860669,-500.0,0.00015258,2]
[398062454,1765345860679,-500.0,0.00015258,2]
[398062455,1765345860688,-500.0,0.00015258,2]
[398062456,1765345860697,-526.97293539,0.00015258,2]
[398062457,1765345860708,-500.0,0.00015258,2]
[398062458,1765345860717,-500.0,0.00015258,2]
[398062459,1765345860729,-500.0,0.00015258,2]
[398062460,1765345860739,-500.0,0.00015258,2]
[398062461,1765345860749,-500.0,0.00015258,2]
[398062462,1765345860759,-269.65380149,0.00015258,2]
[398062463,1765345860768,-500.0,0.00015258,2]
[398062464,1765345860778,-500.0,0.00015258,2]
[398062465,1765345860788,-500.0,0.00015258,2]
[398062466,1765345860798,-500.0,0.00015258,2]
[398062467,1765345860808,-368.40050106,0.00015258,2]
[398062468,1765345860817,-500.0,0.00015258,2]
[398062469,1765345860827,-500.0,0.00015258,2]
[398062470,1765345860836,-500.0,0.00015258,2]
[398062471,1765345860845,-500.0,0.00015258,2]
[398062472,1765345860855,-500.0,0.00015258,2]
[398062473,1765345860864,-617.34,0.00015258,2]
[398062474,1765345860873,-500.0,0.00015258,2]
[398062475,1765345860883,-500.0,0.00015258,2]
[398062476,1765345860892,-500.0,0.00015258,2]
[398062477,1765345860901,-500.0,0.00015258,2]
[398062478,1765345860910,-500.0,0.00015258,2]
[398062479,1765345860920,-2218.11,0.00015258,2]
[398062480,1765345860928,-590.42,0.00015258,2]
[398062481,1765345860938,-375.91311408,0.00015258,2]
[398062482,1765345860947,-500.0,0.00015258,2]
[398062483,1765345860956,-500.0,0.00015258,2]
[398062484,1765345860965,-1052.47,0.00015258,2]
[398062485,1765345860974,-500.0,0.00015258,2]
[398062486,1765345860983,-500.0,0.00015258,2]
[398062487,1765345860993,-1419.3,0.00015258,2]
[398062488,1765345861002,-500.0,0.00015258,2]
[398062489,1765345861012,-768.58,0.00015258,2]
[398062490,1765345861022,-500.0,0.00015258,2]
[398062491,1765345861032,-500.0,0.00015258,2]
[398062492,1765345861042,-500.0,0.00015258,2]
[398062493,1765345861055,-500.0,0.00015258,2]
[398062494,1765345861064,-500.0,0.00015258,2]
[398062495,1765345861074,-500.0,0.00015258,2]
[398062496,1765345861085,-687.93,0.00015258,2]
[398062497,1765345861095,-632.89,0.00015258,2]
[398062498,1765345861105,-545.81,0.00015258,2]
[398062499,1765345861114,-500.0,0.00015258,2]
[398062500,1765345861124,-500.0,0.00015258,2]
[398062501,1765345861134,-500.0,0.00015258,2]
[398062502,1765345861145,-500.0,0.00015258,2]
[398062503,1765345861154,-500.0,0.00015258,2]
[398062504,1765345861164,-500.0,0.00015258,2]
[398062505,1765345861173,-964.56,0.00015258,2]
[398062506,1765345861183,-500.0,0.00015258,2]
[398062507,1765345861192,-500.0,0.00015258,2]
[398062508,1765345861202,-500.0,0.00015258,2]
[398062509,1765345861212,-151.0,0.00015258,2]
[398062510,1765345861221,-500.0,0.00015258,2]
[398062511,1765345861230,-500.0,0.00015258,2]
[398062512,1765345861239,-500.0,0.00015258,2]
[398062513,1765345861248,-500.0,0.00015258,2]
[398062514,1765345861258,-500.0,0.00015258,2]
[398062515,1765345861267,-624.0,0.00015258,2]
[398062516,1765345861276,-500.0,0.00015258,2]
[398062517,1765345861286,-500.0,0.00015258,2]
[398062518,1765345861295,-509.53,0.00015258,2]
[398062519,1765345861305,-501.64356811,0.00015258,2]
[398062520,1765345861314,-500.0,0.00015258,2]
[398062521,1765345861323,-500.0,0.00015258,2]
[398062522,1765345861332,-500.0,0.00015258,2]
[398062523,1765345861342,-500.0,0.00015258,2]
[398062524,1765345861352,-500.0,0.00015258,2]
[398062525,1765345861361,-500.0,0.00015258,2]
[398062526,1765345861371,-631.32,0.00015258,2]
[398062527,1765345861380,-586.3,0.00015258,2]
[398062528,1765345861391,-500.0,0.00015258,2]
[398062529,1765345861400,-500.0,0.00015258,2]
[398062530,1765345861409,-500.0,0.00015258,2]
[398062531,1765345861419,-500.0,0.00015258,2]
[398062532,1765345861428,-1000.0,0.00015258,2]
[398062533,1765345861437,-500.0,0.00015258,2]
[398062534,1765345861447,-500.0,0.00015258,2]
[398062535,1765345861456,-901.25,0.00015258,2]
[398062536,1765345861466,-500.0,0.00015258,2]
[398062537,1765345861476,-500.0,0.00015258,2]
[398062538,1765345861486,-500.0,0.00015258,2]
[398062539,1765345861496,-500.0,0.00015258,2]
[398062540,1765345861506,-500.0,0.00015258,2]
[398062541,1765345861515,-500.0,0.00015258,2]
[398062542,1765345861524,-614.38,0.00015258,2]
[398062543,1765345861534,-642.47690629,0.00015258,2]
[398062544,1765345861543,-275.0512085,0.00015258,2]
[398062545,1765345861552,-500.0,0.00015258,2]
[398062546,1765345861562,-622.62,0.00015258,2]
[398062547,1765345861572,-500.0,0.00015258,2]
[398062548,1765345861583,-706.42,0.00015258,2]
[398062549,1765345861592,-560.84619569,0.00015258,2]
[398062550,1765345861602,-500.0,0.00015258,2]
[398062551,1765345861611,-500.0,0.00015258,2]
[398062552,1765345861620,-678.54,0.00015258,2]
[398062553,1765345861630,-500.0,0.00015258,2]
[398062554,1765345861639,-500.0,0.00015258,2]
[398062555,1765345861647,-531.83923179,0.00015258,2]
[398062556,1765345861657,-500.0,0.00015258,2]
[398062557,1765345861666,-500.0,0.00015258,2]
[398062558,1765345861675,-500.0,0.00015258,2]
[398062559,1765345861684,-500.0,0.00015258,2]
[398062560,1765345861695,-500.0,0.00015258,2]
[398062561,1765345861704,-340.91248771,0.00015259,2]
[398062562,1765345861714,-106140.9532753,0.00015259,2]
[398062563,1765345861724,-500.0,0.00015259,2]
[398062564,1765345861733,-500.0,0.00015259,2]
[398062565,1765345861743,-258.26145972,0.00015259,2]
[398062566,1765345861753,-500.0,0.00015259,2]
[398062567,1765345861763,-500.0,0.00015259,2]
[398062568,1765345861772,-500.0,0.00015259,2]
[398062569,1765345861781,-500.0,0.00015259,2]
[398062570,1765345861791,-500.0,0.00015259,2]
[398062571,1765345861800,-500.0,0.00015259,2]
[398062572,1765345861809,-500.0,0.00015259,2]
[398062573,1765345861818,-200.0,0.00015259,2]
[398062574,1765345861827,-23057.2926005,0.00015259,2]
[398062575,1765345861837,-200.0,0.00015259,2]
[398062576,1765345861847,-150.0,0.00015259,2]
[398062577,1765345861856,-151.55115124,0.00015259,2]
[398062578,1765345861865,-150.0,0.00015259,2]
[398062579,1765345861874,-150.0,0.00015259,2]
[398062580,1765345861883,-150.0,0.00015259,2]
[398062581,1765345861892,-150.0,0.00015259,2]
[398062582,1765345861901,-150.0,0.00015259,2]
[398062583,1765345861911,-200.0,0.00015259,2]
[398062584,1765345861920,-1680.0,0.00015269,2]
[398062585,1765345861929,-5282.0,0.00015288,2]
[398062586,1765345861939,-2804.0,0.00015294,2]
[398062587,1765345861949,-173.0,0.00015307,2]
[398062588,1765345861958,-1000.0,0.00015324,2]
[398062589,1765345861968,-5198.03817223,0.00015332,2]
[398062590,1765345862037,-150.0,0.00015396,2]
[398062591,1765345862047,-231.14342234,0.00015396,2]
[398062592,1765345862056,-249.460588,0.00015396,2]
[398062593,1765345862066,-150.0,0.00015396,2]
[398062594,1765345862075,-169.6143275,0.00015396,2]
[398062595,1765345862084,-150.0,0.00015396,2]
[398062596,1765345862094,-1097.0,0.00015399,2]
[398062597,1765345862104,-200.0,0.00015412,2]
[398062598,1765345862113,-200.0,0.00015412,2]
[398062599,1765345862122,-500.0,0.00015431,2]
[398062600,1765345862132,-500.0,0.00015431,2]
[398062601,1765345862141,-500.0,0.00015431,2]
[398062602,1765345862151,-501.99,0.00015431,2]
[398062603,1765345862160,-500.0,0.00015431,2]
[398062604,1765345862170,-500.0,0.00015431,2]
[398062605,1765345862179,-500.0,0.00015431,2]
[398062606,1765345862188,-500.0,0.00015431,2]
[398062607,1765345862197,-500.0,0.00015432,2]
[398062608,1765345862206,-500.0,0.00015432,2]
[398062609,1765345862217,-500.0,0.00015432,2]
[398062610,1765345862227,-500.0,0.00015432,2]
[398062611,1765345862237,-500.0,0.00015432,2]
[398062612,1765345862247,-735.2,0.00015432,2]
[398062613,1765345862256,-500.0,0.00015432,2]
[398062614,1765345862266,-170.48440743,0.00015432,2]
[398062615,1765345862275,-533.04,0.00015432,2]
[398062616,1765345862284,-500.0,0.00015432,2]
[398062617,1765345862293,-586.77,0.00015432,2]
[398062618,1765345862302,-563.91,0.00015432,2]
[398062619,1765345862312,-622.47,0.00015432,2]
[398062620,1765345862321,-500.0,0.00015432,2]
[398062621,1765345862330,-500.0,0.00015432,2]
[398062622,1765345862339,-500.0,0.00015432,2]
[398062623,1765345862348,-500.0,0.00015432,2]
[398062624,1765345862357,-500.0,0.00015432,2]
[398062625,1765345862367,-500.0,0.00015432,2]
[398062626,1765345862376,-541.51,0.00015432,2]
[398062627,1765345862387,-500.0,0.00015432,2]
[398062628,1765345862396,-622.59227493,0.00015432,2]
[398062629,1765345862406,-500.0,0.00015432,2]
[398062630,1765345862415,-500.0,0.00015432,2]
[398062631,1765345862424,-500.0,0.00015432,2]
[398062632,1765345862432,-500.0,0.00015432,2]
[398062633,1765345862442,-500.0,0.00015432,2]
[398062634,1765345862451,-500.0,0.00015432,2]
[398062635,1765345862461,-1000.99,0.00015432,2]
[398062636,1765345862470,-500.0,0.00015432,2]
[398062637,1765345862480,-500.0,0.00015432,2]
[398062638,1765345862489,-500.0,0.00015432,2]
[398062639,1765345862498,-500.0,0.00015432,2]
[398062640,1765345862508,-500.0,0.00015432,2]
[398062641,1765345862516,-500.0,0.00015432,2]
[398062642,1765345862527,-641.790329,0.00015432,2]
[398062643,1765345862536,-891.41,0.00015432,2]
[398062644,1765345862545,-536.25256197,0.00015432,2]
[398062645,1765345862554,-157.87582,0.00015432,2]
[398062646,1765345862563,-725.62,0.00015432,2]
[398062647,1765345862573,-604.37,0.00015432,2]
[398062648,1765345862583,-1660.048152,0.00015432,2]
[398062649,1765345862592,-500.0,0.00015432,2]
[398062650,1765345862602,-1731.234733,0.00015432,2]
[398062651,1765345862612,-195.089803,0.00015432,2]
[398062652,1765345862622,-500.0,0.00015432,2]
[398062653,1765345862631,-500.0,0.00015432,2]
[398062654,1765345862640,-1133.052679,0.00015432,2]
[398062655,1765345862649,-695.26,0.00015432,2]
[398062656,1765345862660,-722.33,0.00015432,2]
[398062657,1765345862669,-531.08,0.00015432,2]
[398062658,1765345862678,-500.0,0.00015432,2]
[398062659,1765345862687,-500.0,0.00015432,2]
[398062660,1765345862696,-512.92,0.00015432,2]
[398062661,1765345862707,-500.0,0.00015432,2]
[398062662,1765345862716,-500.0,0.00015432,2]
[398062663,1765345862725,-500.0,0.00015432,2]
[398062664,1765345862735,-984.69,0.00015432,2]
[398062665,1765345862744,-203.48040479,0.00015432,2]
[398062666,1765345862753,-245.20507327,0.00015432,2]
[398062667,1765345862762,-633.19,0.00015432,2]
[398062668,1765345862771,-500.0,0.00015432,2]
[398062669,1765345862780,-500.0,0.00015432,2]
[398062670,1765345862789,-500.0,0.00015432,2]
[398062671,1765345862798,-513.39,0.00015432,2]
[398062672,1765345862807,-500.0,0.00015432,2]
[398062673,1765345862816,-528.27241369,0.00015432,2]
[398062674,1765345862825,-500.0,0.00015432,2]
[398062675,1765345862833,-500.68,0.00015432,2]
[398062676,1765345862842,-500.0,0.00015432,2]
[398062677,1765345862852,-500.0,0.00015432,2]
[398062678,1765345862861,-1357.22,0.00015432,2]
[398062679,1765345862871,-500.0,0.00015432,2]
[398062680,1765345862880,-500.0,0.00015432,2]
[398062681,1765345862889,-500.0,0.00015432,2]
[398062682,1765345862899,-500.0,0.00015432,2]
[398062683,1765345862909,-1190.26,0.00015432,2]
[398062684,1765345862918,-316.20306074,0.00015432,2]
[398062685,1765345864774,-500.0,0.00014883,2]
[398062686,1765345864784,-474.9999998,0.00014884,2]
[398062687,1765345864796,-25.0000002,0.00014884,2]
[398062688,1765345864805,-502.16032037,0.00014884,2]
[398062689,1765345864815,-500.0,0.00014884,2]
[398062690,1765345864825,-500.0,0.00015157,2]
[398062691,1765345864834,-40.52356143,0.00015158,2]
[398062692,1765345864846,-459.47643857,0.00015158,2]
[398062693,1765345864855,-500.0,0.00015431,2]
[398062694,1765345864865,-264.76693926,0.00015432,2]
[398062695,1765345864875,-500.0,0.00015432,2]
[398062696,1765345864884,-796.48,0.00015432,2]
[398062697,1765345864899,-516.93217318,0.00015432,2]
[398062698,1765345864909,-500.0,0.00015432,2]
[398062699,1765345864918,-500.0,0.00015432,2]
[398062700,1765345864928,-539.62,0.00015432,2]
[398062701,1765345864938,-629.98475643,0.00015432,2]
[398062702,1765345864947,-500.0,0.00015432,2]
[398062703,1765345864956,-500.0,0.00015432,2]
[398062704,1765345864967,-500.0,0.00015432,2]
[398062705,1765345864976,-211.95720426,0.00015432,2]
[398062706,1765345864986,-500.0,0.00015432,2]
[398062707,1765345864995,-500.0,0.00015432,2]
[398062708,1765345865005,-500.0,0.00015432,2]
[398062709,1765345865014,-500.0,0.00015432,2]
[398062710,1765345865024,-1264.96,0.00015432,2]
[398062711,1765345865033,-500.0,0.00015432,2]
[398062712,1765345865042,-181.8323859,0.00015432,2]
[398062713,1765345865054,-500.0,0.00015432,2]
[398062714,1765345865065,-375.02536284,0.00015432,2]
[398062715,1765345865075,-500.0,0.00015432,2]
[398062716,1765345865084,-500.0,0.00015432,2]
[398062717,1765345865095,-500.0,0.00015432,2]
[398062718,1765345865104,-915.35,0.00015432,2]
[398062719,1765345865114,-500.0,0.00015432,2]
[398062720,1765345865123,-500.0,0.00015432,2]
[398062721,1765345865135,-502.85514114,0.00015432,2]
[398062722,1765345865145,-500.0,0.00015432,2]
[398062723,1765345865156,-500.0,0.00015432,2]
[398062724,1765345865165,-500.0,0.00015432,2]
[398062725,1765345865175,-500.0,0.00015432,2]
[398062726,1765345865184,-500.0,0.00015432,2]
[398062727,1765345865194,-762.0,0.00015432,2]
[398062728,1765345865203,-500.0,0.00015432,2]
[398062729,1765345865214,-500.0,0.00015432,2]
[398062730,1765345865224,-500.0,0.00015432,2]
[398062731,1765345865235,-379.12350053,0.00015432,2]
[398062732,1765345865245,-500.0,0.00015432,2]
[398062733,1765345865257,-500.0,0.00015432,2]
[398062734,1765345865266,-727.41,0.00015432,2]
[398062735,1765345865276,-500.0,0.00015432,2]
[398062736,1765345865287,-201.59687401,0.00015432,2]
[398062737,1765345865299,-500.0,0.00015432,2]
[398062738,1765345865310,-892.61,0.00015432,2]
[398062739,1765345865319,-1071.96,0.00015432,2]
[398062740,1765345865329,-237.06532055,0.00015432,2]
[398062741,1765345865338,-500.0,0.00015432,2]
[398062742,1765345865348,-1775.39,0.00015432,2]
[398062743,1765345865357,-500.0,0.00015432,2]
[398062744,1765345865366,-500.0,0.00015432,2]
[398062745,1765345865375,-500.0,0.00015432,2]
[398062746,1765345865385,-500.0,0.00015432,2]
[398062747,1765345865394,-520.58,0.00015432,2]
[398062748,1765345865404,-500.0,0.00015432,2]
[398062749,1765345865414,-500.0,0.00015432,2]
[398062750,1765345865423,-500.0,0.00015432,2]
[398062751,1765345865433,-739.15,0.00015432,2]
[398062752,1765345865443,-722.91,0.00015432,2]
[398062753,1765345865452,-500.0,0.00015432,2]
[398062754,1765345865462,-500.0,0.00015432,2]
[398062755,1765345865471,-500.0,0.00015432,2]
[398062756,1765345865481,-488.95009849,0.00015432,2]
[398062757,1765345865490,-500.0,0.00015432,2]
[398062758,1765345865500,-500.0,0.00015432,2]
[398062759,1765345865510,-500.0,0.00015432,2]
[398062760,1765345865519,-500.0,0.00015432,2]
[398062761,1765345865528,-500.0,0.00015432,2]
[398062762,1765345865538,-500.0,0.00015432,2]
[398062763,1765345865547,-500.0,0.00015432,2]
[398062764,1765345865557,-500.0,0.00015432,2]
[398062765,1765345865566,-500.0,0.00015432,2]
[398062766,1765345865576,-654.63,0.00015432,2]
[398062767,1765345865817,-500.0,0.00015432,2]
[398062768,1765345865850,-484.52602357,0.00015432,2]
[398062769,1765345865860,-500.0,0.00015432,2]
[398062770,1765345865869,-500.0,0.00015432,2]
[398062771,1765345865879,-385.19590826,0.00015432,2]
[398062775,1765346703329,194.14520199,0.00025,120]
[398062776,1765346793615,6673.01583035,0.00013,10]
[398062777,1765346793638,3326.98416965,0.00013,10]
[398062778,1765346806220,10000.0,0.00013,10]
[398062779,1765346834884,1826.2,0.00013,10]
[398062780,1765346993134,207.92983353,0.00022,30]
[398062783,1765347031692,-1000.0,0.00012999,3]
[398062784,1765347031702,-260.0,0.00013389,2]
[398062785,1765347031712,-150.0,0.00013389,2]
[398062786,1765347031722,-150.0,0.00013389,2]
[398062787,1765347031732,-150.0,0.00013389,2]
[398062788,1765347031742,-150.0,0.00013389,2]
[398062789,1765347031752,-999.0,0.00013474,3]
[398062790,1765347031761,-2575.07,0.0001355,2]
[398062791,1765347031771,-500.0,0.00013599,2]
[398062792,1765347031781,-166.66,0.00013699,2]
[398062793,1765347031791,-202.65042615,0.00013699,2]
[398062794,1765347031801,-1200.0,0.00013778,2]
[398062795,1765347031810,-1000.0,0.00013779,2]
[398062796,1765347031820,-157.98,0.00013819,2]
[398062797,1765347031829,-150.0,0.00013858,2]
[398062798,1765347031839,-166.66,0.00013916,2]
[398062799,1765347031848,-300.0,0.00014132,2]
[398062800,1765347031858,-300.0,0.00014132,2]
[398062801,1765347031868,-150.0,0.00014133,2]
[398062802,1765347031877,-150.0,0.00014133,2]
[398062803,1765347031887,-166.66,0.00014133,2]
[398062804,1765347031897,-501.0,0.00014274,2]
[398062805,1765347031907,-202.65042615,0.00014276,2]
[398062807,1765347031917,-559.0,0.00014289,2]
[398062809,1765347031927,-523.51,0.0001429,2]
[398062811,1765347031936,-166.66,0.0001435,2]
[398062813,1765347031945,-661.0,0.00014371,2]
[398062815,1765347031954,-166.66,0.00014567,2]
[398062817,1765347031964,-171.1554458,0.00014583,2]
[398062819,1765347031973,-7726.60703609,0.00014583,2]
[398062821,1765347031982,-1000.0,0.00014587,2]
[398062823,1765347031992,-1409.0,0.00014606,2]
[398062825,1765347032001,-1409.0,0.00014634,2]
[398062827,1765347032011,-150.0,0.00014669,2]
[398062829,1765347032020,-1409.0,0.0001467,2]
[398062831,1765347032029,-500.0,0.00014675,2]
[398062834,1765347032039,-500.0,0.00014675,2]
[398062838,1765347032049,-500.0,0.00014675,2]
[398062840,1765347032059,-500.0,0.00014675,2]
[398062842,1765347032067,-500.0,0.00014675,2]
[398062844,1765347032076,-500.0,0.00014675,2]
[398062846,1765347032085,-509.2571872,0.00014675,2]
[398062848,1765347032094,-157.90254619,0.0001468,2]
[398062850,1765347032103,-500.0,0.00014682,2]
[398062852,1765347032113,-500.0,0.00014682,2]
[398062854,1765347032123,-500.0,0.00014682,2]
[398062856,1765347032132,-500.0,0.00014682,2]
[398062857,1765347032141,-500.0,0.00014682,2]
[398062858,1765347032150,-500.0,0.00014682,2]
[398062859,1765347032158,-500.0,0.00014682,2]
[398062860,1765347032167,-500.0,0.00014682,2]
[398062861,1765347032176,-500.0,0.00014682,2]
[398062862,1765347032186,-500.0,0.00014682,2]
[398062863,1765347032194,-500.0,0.00014682,2]
[398062864,1765347032203,-500.0,0.00014682,2]
[398062865,1765347032212,-500.0,0.00014682,2]
[398062866,1765347032221,-500.0,0.00014682,2]
[398062867,1765347032229,-500.0,0.00014682,2]
[398062868,1765347032238,-500.0,0.00014682,2]
[398062869,1765347032247,-500.0,0.00014682,2]
[398062870,1765347032256,-500.0,0.00014682,2]
[398062871,1765347032265,-500.0,0.00014682,2]
[398062872,1765347032274,-500.0,0.00014682,2]
[398062873,1765347032283,-500.0,0.00014682,2]
[398062874,1765347032291,-500.0,0.00014682,2]
[398062875,1765347032300,-500.0,0.00014682,2]
[398062876,1765347032309,-500.0,0.00014682,2]
[398062877,1765347032318,-160.05818803,0.00014682,2]
[398062878,1765347032327,-500.0,0.00014682,2]
[398062880,1765347032336,-500.0,0.00014682,2]
[398062882,1765347032345,-4158.43053782,0.00014683,2]
[398062884,1765347032354,-52604.91140414,0.00014683,2]
[398062886,1765347032367,-16270.53814277,0.00014683,2]
[398062888,1765347032377,-5764.91830556,0.00014683,2]
[398062891,1765347032389,-30754.42462943,0.00014683,2]
[398062896,1765347032426,-664.14,0.00014683,2]
[398062898,1765347032504,-485.01153519,0.00014683,2]
[398062899,1765347032516,-3306.8918315,0.00014683,2]
[398062900,1765347032527,-925.31470165,0.00014683,2]
[398062901,1765347032539,-1046.51182598,0.00014683,2]
[398062902,1765347038034,-327.87986262,0.00014682,2]
[398062913,1765347040001,-158.16423489,0.00014583,2]
[398062914,1765347040011,-172.12013738,0.00014682,2]
[398062915,1765347040021,-199.04286851,0.00014682,2]
[398062916,1765347040031,-727.05279238,0.00014683,2]
[398062917,1765347040059,-647450.2848314,0.00014683,2]
[398062918,1765347040069,-3079.9779,0.00014683,2]
[398062919,1765347040079,-1000.0,0.00014684,2]
[398062920,1765347040089,-311.03707861,0.0001473,2]
[398062921,1765347040099,-151.0,0.00014766,2]
[398062922,1765347040110,-1000.0,0.00014766,2]
[398062923,1765347040122,-1000.0,0.00014766,2]
[398062924,1765347040132,-1000.0,0.00014766,2]
[398062925,1765347040141,-1000.0,0.00014766,2]
[398062926,1765347040152,-1000.0,0.00014766,2]
[398062927,1765347040161,-151.7837011,0.00014766,2]
[398062928,1765347040170,-500.0,0.00014766,2]
[398062929,1765347040179,-500.0,0.00014766,2]
[398062930,1765347040188,-533.88981491,0.00014766,2]
[398062931,1765347040198,-609.4639632,0.00014766,2]
[398062932,1765347040207,-642.94,0.00014766,2]
[398062933,1765347040217,-160.39778944,0.00014766,2]
[398062934,1765347040227,-500.0,0.00014766,2]
[398062935,1765347040238,-500.0,0.00014766,2]
[398062936,1765347040248,-500.0,0.00014766,2]
[398062937,1765347040257,-263.31566499,0.00014766,2]
[398062938,1765347040266,-500.0,0.00014766,2]
[398062939,1765347040275,-500.0,0.00014766,2]
[398062940,1765347040284,-500.0,0.00014766,2]
[398062941,1765347040294,-500.0,0.00014766,2]
[398062942,1765347040304,-500.0,0.00014766,2]
[398062943,1765347040314,-500.0,0.00014766,2]
[398062944,1765347040323,-505.30277131,0.00014766,2]
[398062945,1765347040332,-1000.0,0.00014782,2]
[398062947,1765347040342,-406.418,0.00014782,2]
[398062949,1765347040351,-560.32,0.00014782,2]
[398062950,1765347040361,-655.23,0.00014782,2]
[398062951,1765347040370,-1494.62,0.00014782,2]
[398062952,1765347040380,-500.0,0.00014782,2]
[398062953,1765347040389,-500.0,0.00014782,2]
[398062954,1765347040399,-500.0,0.00014782,2]
[398062955,1765347040410,-500.0,0.00014782,2]
[398062956,1765347040419,-500.0,0.00014782,2]
[398062957,1765347040429,-579.16,0.00014782,2]
[398062958,1765347040439,-500.0,0.00014782,2]
[398062959,1765347040448,-500.01,0.00014782,2]
[398062960,1765347040457,-575.12,0.00014782,2]
[398062961,1765347040467,-689.66,0.00014782,2]
[398062962,1765347040476,-799.56,0.00014782,2]
[398062963,1765347040485,-500.0,0.00014782,2]
[398062964,1765347040493,-667.49,0.00014782,2]
[398062965,1765347040503,-622.81,0.00014782,2]
[398062966,1765347040512,-500.0,0.00014782,2]
[398062967,1765347040521,-500.0,0.00014782,2]
[398062968,1765347040530,-500.0,0.00014782,2]
[398062969,1765347040539,-500.0,0.00014782,2]
[398062970,1765347040549,-2056.73,0.00014782,2]
[398062971,1765347040558,-500.0,0.00014782,2]
[398062972,1765347040571,-500.0,0.00014782,2]
[398062974,1765347040580,-500.0,0.00014782,2]
[398062975,1765347040590,-500.0,0.00014782,2]
[398062976,1765347040600,-500.0,0.00014782,2]
[398062977,1765347040610,-738.92,0.00014782,2]
[398062978,1765347040619,-2961.05,0.00014782,2]
[398062979,1765347040629,-698.5,0.00014782,2]
[398062980,1765347040639,-150.28749158,0.00014782,2]
[398062981,1765347040649,-540.35425811,0.00014782,2]
[398062982,1765347040659,-500.0,0.00014782,2]
[398062983,1765347040668,-505.97478743,0.00014783,2]
[398062984,1765347040678,-615.52,0.00014783,2]
[398062985,1765347040687,-511.50276985,0.00014783,2]
[398062986,1765347040697,-500.0,0.00014783,2]
[398062987,1765347040707,-500.0,0.00014783,2]
[398062988,1765347040716,-203.48040479,0.00014783,2]
[398062989,1765347040726,-500.0,0.00014783,2]
[398062990,1765347040736,-245.20507327,0.00014783,2]
[398062991,1765347040745,-450.44536404,0.00014783,2]
[398062992,1765347040755,-500.0,0.00014783,2]
[398062993,1765347040764,-521.52,0.00014783,2]
[398062994,1765347040774,-500.0,0.00014783,2]
[398062995,1765347040783,-500.0,0.00014783,2]
[398062996,1765347040793,-500.0,0.00014783,2]
[398062997,1765347040803,-500.0,0.00014783,2]
[398062998,1765347040813,-500.0,0.00014783,2]
[398062999,1765347040822,-500.0,0.00014783,2]
[398063000,1765347040831,-500.0,0.00014783,2]
[398063001,1765347040841,-500.0,0.00014783,2]